bitfinex/quotes_ETHUSD_20241013
["timestamp","ask_amount","ask_price","bid_price","bid_amount"]
[1728788242415,2.88510506,2474.7,2474.2,4.87318]
[1728788242614,2.88510506,2474.7,2474.6,0.38180389]
[1728788242917,2.88510506,2474.7,2474.6,0.38179936]
[1728788243123,2.88510506,2474.7,2474.2,4.87318]
[1728788243332,2.88585347,2474.7,2474.6,0.38179936]
[1728788243840,2.88585347,2474.7,2474.2,4.87318]
[1728788244161,1.4882601,2474.5,2474.3,0.63232749]
[1728788244371,1.4882601,2474.5,2474.4,0.12657678]
[1728788244858,1.4882601,2474.5,2474.4,0.38203329]
[1728788245043,1.4882601,2474.5,2474.4,0.5086103]
[1728788245244,1.4882601,2474.5,2474.4,0.12657701]
[1728788245463,2.12485347,2474.7,2474.5,0.8315]
[1728788245619,2.54640897,2474.9,2474.6,0.9678946]
[1728788245822,0.4215555,2474.9,2474.7,0.12657701]
[1728788246030,0.4215555,2474.9,2474.6,0.91994057]
[1728788246031,0.4215555,2474.9,2474.8,0.12657701]
[1728788246263,1.9098156,2474.9,2474.8,0.50812884]
[1728788247626,1.9098156,2474.9,2474.8,1.01684753]
[1728788247863,1.9098156,2474.9,2474.8,1.81184753]
[1728788248233,1.9098156,2474.9,2474.8,1.68527052]
[1728788248555,1.9098156,2474.9,2474.8,1.81183303]
[1728788248731,1.9098156,2474.9,2474.8,1.68527052]
[1728788248933,0.4215555,2474.9,2474.8,1.68527052]
[1728788249136,1.9098156,2474.9,2474.8,1.68527052]
[1728788254675,1.9098156,2474.9,2474.8,0.89027052]
[1728788261257,1.9098156,2474.9,2474.8,0.38155183]
[1728788261762,1.9098156,2474.9,2474.8,0.3815189]
[1728788261965,1.9098156,2474.9,2474.6,1.33314803]
[1728788262274,1.4882601,2474.8,2474.7,0.38163925]
[1728788271614,1.4882601,2474.8,2474.2,17.63688833]
[1728788271803,1.4882601,2474.5,2474.3,2.0927627]
[1728788272023,1.4882601,2474.5,2474.4,0.12656687]
[1728788272321,5.2949255,2474.9,2474.4,0.12656687]
[1728788272322,1.4882601,2474.7,2474.4,0.12656687]
[1728788272494,1.4882601,2474.6,2474.3,5.80512883]
[1728788272689,1.4882601,2474.7,2474.4,0.12656775]
[1728788272924,1.4882601,2474.6,2474.4,1.95269649]
[1728788273096,1.4882601,2474.6,2474.5,0.38184589]
[1728788275721,1.4882601,2474.6,2474.3,4.04144]
[1728788276029,1.4882601,2474.5,2474.4,0.50853319]
[1728788277286,1.4882601,2474.6,2474.4,0.50853319]
[1728788277484,1.4882601,2474.6,2474.4,0.38196627]
[1728788277924,1.4882601,2474.6,2474.3,4.04152]
[1728788278222,1.4882601,2474.6,2474.4,1.3975533]
[1728788278384,1.4882601,2474.6,2474.4,1.27098627]
[1728788280323,1.4882601,2474.6,2474.5,0.12656709]
[1728788280641,1.4882601,2474.6,2474.5,0.50841298]
[1728788280826,1.4882601,2474.6,2474.5,0.38184589]
[1728788281133,1.4882601,2474.6,2474.5,0.50841305]
[1728788281292,1.4882601,2474.6,2474.5,0.508413]
[1728788284230,1.4882601,2474.6,2474.5,0.38184589]
[1728788284393,1.4882601,2474.6,2474.5,0.50841263]
[1728788285951,1.4882601,2474.7,2474.5,0.50841263]
[1728788286247,1.4882601,2474.7,2474.6,0.12656566]
[1728788286746,1.4882601,2474.7,2474.6,0.50830482]
[1728788288002,1.4882601,2474.7,2474.6,0.50830472]
[1728788295284,1.4882601,2474.8,2474.6,0.50830472]
[1728788295596,1.2543555,2474.9,2474.7,0.12656556]
[1728788295752,1.2543555,2474.9,2474.8,0.38150411]
[1728788295952,1.2543555,2474.9,2474.5,0.7913]
[1728788296185,1.4882601,2474.7,2474.6,0.50831029]
[1728788296368,1.4882601,2474.7,2474.6,0.81145068]
[1728788298901,1.4882601,2474.7,2474.6,0.50831017]
[1728788299097,1.4882601,2474.7,2474.6,0.81148336]
[1728788300899,1.4882601,2474.7,2474.6,0.81147862]
[1728788302321,1.4882601,2474.7,2474.6,1.37589248]
[1728788302462,1.4882601,2474.7,2474.6,1.37589642]
[1728788304393,1.4882601,2474.7,2474.6,1.01398663]
[1728788304963,0.4215555,2474.9,2474.6,1.01398672]
[1728788305177,0.4215555,2474.9,2474.7,0.12656508]
[1728788305395,3.61354451,2475.0,2474.8,0.50806011]
[1728788305699,3.61354451,2475.0,2474.8,0.38149503]
[1728788306057,3.61354451,2475.0,2474.6,4.04101]
[1728788306262,3.61354451,2475.0,2474.9,0.38137469]
[1728788306488,3.61354451,2475.0,2474.7,0.12655979]
[1728788306688,1.4882601,2474.9,2474.8,0.12655914]
[1728788309701,1.4882601,2474.9,2474.8,0.12655825]
[1728788313317,1.4882601,2474.9,2474.8,0.5080385]
[1728788313468,1.4882601,2474.9,2474.8,0.12655825]
[1728788313670,1.4882601,2474.9,2474.8,0.5080385]
[1728788316622,1.4882601,2474.9,2474.8,0.38148025]
[1728788316821,1.4882601,2474.9,2474.5,4.83242]
[1728788317049,1.4882601,2474.9,2474.6,1.01388119]
[1728788317234,1.4882601,2474.9,2474.7,0.1265582]
[1728788317448,1.4882601,2474.9,2474.8,0.38148025]
[1728788317956,1.4882601,2474.9,2474.5,4.83242]
[1728788318165,1.4882601,2474.9,2474.8,0.38148025]
[1728788318371,1.4882601,2474.9,2474.5,4.83242]
[1728788318664,1.4882601,2474.9,2474.6,0.3290533]
[1728788318845,1.4882601,2474.9,2474.7,0.12655896]
[1728788319043,1.4882601,2474.9,2474.8,0.38147911]
[1728788319252,1.4882601,2474.9,2474.5,4.83242]
[1728788319570,1.4882601,2474.9,2474.8,0.38147911]
[1728788319770,1.4882601,2474.9,2474.5,4.83242]
[1728788320080,1.4882601,2474.9,2474.6,0.7107729]
[1728788320279,1.4882601,2474.9,2474.7,0.12655888]
[1728788320642,1.4882601,2474.9,2474.8,0.38147911]
[1728788320845,1.4882601,2474.9,2474.5,4.83242]
[1728788321147,1.4882601,2474.9,2474.6,0.71077347]
[1728788321459,1.4882601,2474.9,2474.7,0.12655858]
[1728788321662,1.4882601,2474.9,2474.6,0.38172095]
[1728788321849,1.4882601,2474.9,2474.8,0.38148025]
[1728788322047,1.4882601,2474.9,2474.5,4.83242]
[1728788322260,1.4882601,2474.9,2474.6,0.71077318]
[1728788322460,1.4882601,2474.9,2474.7,0.12655855]
[1728788322667,1.4882601,2474.9,2474.6,0.38172095]
[1728788322970,6.92675238,2475.1,2474.8,0.38147798]
[1728788322971,2.93758238,2475.0,2474.8,0.38147798]
[1728788323177,0.8127,2474.9,2474.7,0.38159833]
[1728788323382,0.8127,2474.9,2474.4,4.04128]
[1728788323582,1.4882601,2474.6,2474.5,0.32907564]
[1728788323898,1.4882601,2474.6,2474.5,0.32907573]
[1728788324485,1.4882601,2474.6,2474.5,0.12656759]
[1728788324774,1.4882601,2474.6,2474.5,0.32906934]
[1728788328303,1.4882601,2474.6,2474.5,0.32906966]
[1728788330474,1.4882601,2474.6,2474.4,4.04128]
[1728788331339,1.4882601,2474.6,2474.5,0.32907057]
[1728788331535,1.4882601,2474.6,2474.4,4.04128]
[1728788332879,1.4882601,2474.6,2474.5,0.12656513]
[1728788333181,1.4882601,2474.7,2474.5,0.71092772]
[1728788333385,1.4882601,2474.7,2474.6,0.12656513]
[1728788333684,1.4882601,2474.7,2474.6,0.50830315]
[1728788337477,1.4882601,2474.7,2474.6,0.50830308]
[1728788340849,1.4882601,2474.7,2474.6,0.38173802]
[1728788341050,1.4882601,2474.7,2474.6,0.25312869]
[1728788341350,1.4882601,2474.7,2474.6,0.63486671]
[1728788343078,1.4882601,2474.7,2474.6,0.50830244]
[1728788343612,1.4882601,2474.7,2474.6,0.50830205]
[1728788347278,1.4882601,2474.7,2474.6,0.50830258]
[1728788351224,1.4882601,2474.7,2474.6,0.50830292]
[1728788362116,1.4882601,2474.7,2474.6,0.50830274]
[1728788362422,1.4882601,2474.7,2474.6,0.38173802]
[1728788362617,1.4882601,2474.7,2474.6,0.12656518]
[1728788362934,1.4882601,2474.7,2474.6,0.50832592]
[1728788363128,1.4882601,2474.7,2474.6,0.12656518]
[1728788363337,1.4882601,2474.7,2474.6,0.50832592]
[1728788365734,1.4882601,2474.7,2474.6,0.5083255]
[1728788367994,4.42662134,2474.9,2474.6,0.5083255]
[1728788368194,4.42662134,2474.9,2474.7,0.12656476]
[1728788368396,4.42662134,2474.9,2474.8,0.38152116]
[1728788368643,4.42662134,2474.9,2474.4,4.04126]
[1728788368840,4.42662134,2474.9,2474.5,1.41242859]
[1728788369059,4.42662134,2474.9,2474.6,0.32906903]
[1728788369340,4.42662134,2474.9,2474.7,0.38164151]
[1728788369701,4.42662134,2474.9,2474.4,8.08254]
[1728788369998,4.42662134,2474.9,2474.5,1.03054566]
[1728788370234,4.42709591,2474.9,2474.6,0.71083028]
[1728788370442,4.42709591,2474.9,2474.7,0.12656477]
[1728788370646,4.42709591,2474.9,2474.8,0.38152116]
[1728788370843,4.42709591,2474.9,2474.4,4.04126]
[1728788371043,4.42709591,2474.9,2474.5,1.41243212]
[1728788371201,4.42709591,2474.9,2474.6,0.32906846]
[1728788371546,4.42709591,2474.9,2474.7,0.50820744]
[1728788371707,4.42709591,2474.9,2474.7,0.38164265]
[1728788372043,4.42709591,2474.9,2474.4,8.08253]
[1728788372196,4.42709591,2474.9,2474.5,1.41245656]
[1728788372400,4.42709591,2474.9,2474.6,0.32906846]
[1728788372729,4.42709591,2474.9,2474.7,0.50820857]
[1728788372926,4.42709591,2474.9,2474.7,0.38164378]
[1728788373403,4.42709591,2474.9,2474.4,8.08253]
[1728788373748,4.42709591,2474.9,2474.5,1.03058964]
[1728788373914,4.42709591,2474.9,2474.6,0.32906846]
[1728788374115,4.42709591,2474.9,2474.7,0.12656479]
[1728788374336,4.42709591,2474.9,2474.7,0.38164151]
[1728788374519,4.42709591,2474.9,2474.4,4.04126]
[1728788374848,4.42709591,2474.9,2474.5,1.03059391]
[1728788375012,4.42709591,2474.9,2474.6,0.71083033]
[1728788375217,4.42709591,2474.9,2474.7,0.12656479]
[1728788375555,4.42709591,2474.9,2474.8,0.38152116]
[1728788375842,4.42709591,2474.9,2474.4,4.04126]
[1728788376141,4.42709591,2474.9,2474.5,6.02195287]
[1728788376445,4.42709591,2474.9,2474.6,0.32906823]
[1728788376651,4.42709591,2474.9,2474.7,0.50820621]
[1728788376819,4.42709591,2474.9,2474.7,0.38164151]
[1728788377144,4.42709591,2474.9,2474.4,8.08253]
[1728788377306,4.42709591,2474.9,2474.8,0.38152116]
[1728788377506,4.42709591,2474.9,2474.4,8.08253]
[1728788377742,4.42709591,2474.9,2474.8,0.38152116]
[1728788378244,4.42709591,2474.9,2474.4,8.08253]
[1728788378457,4.42709591,2474.9,2474.5,5.45366251]
[1728788378745,4.42709591,2474.9,2474.6,0.63206369]
[1728788379042,4.42709591,2474.9,2474.7,0.50820743]
[1728788379242,4.42709591,2474.9,2474.7,0.38164265]
[1728788379419,4.42709591,2474.9,2474.5,4.0412]
[1728788379619,4.42709591,2474.9,2474.6,0.63205834]
[1728788379830,4.42711887,2474.9,2474.7,0.12656464]
[1728788380029,4.42711887,2474.9,2474.8,0.3815223]
[1728788380361,4.42711887,2474.9,2474.5,4.0412]
[1728788380561,4.42711887,2474.9,2474.8,0.3815223]
[1728788380761,4.42711887,2474.9,2474.5,4.0412]
[1728788380971,4.42711887,2474.9,2474.8,0.3815223]
[1728788381125,4.42711887,2474.9,2474.4,4.04126]
[1728788381465,1.4882601,2474.7,2474.5,1.33361151]
[1728788381764,1.4882601,2474.7,2474.6,1.01384369]
[1728788383876,1.4882601,2474.7,2474.6,0.381763]
[1728788384035,1.4882601,2474.7,2474.6,0.42947701]
[1728788384236,1.4882601,2474.7,2474.6,0.81124001]
[1728788387392,1.4882601,2474.7,2474.6,0.381763]
[1728788387691,1.4882601,2474.7,2474.6,0.42947497]
[1728788387890,1.4882601,2474.7,2474.6,0.81123797]
[1728788390290,1.4882601,2474.7,2474.6,1.78194119]
[1728788390881,1.4882601,2474.7,2474.6,1.01374119]
[1728788391181,1.4882601,2474.7,2474.6,1.01373781]
[1728788393046,1.4882601,2474.7,2474.6,1.01373635]
[1728788393868,1.4882601,2474.7,2474.6,0.381763]
[1728788394073,1.4882601,2474.7,2474.4,8.85084]
[1728788394380,1.4882601,2474.7,2474.6,0.20250183]
[1728788394686,1.4882601,2474.7,2474.6,1.01372597]
[1728788395194,3.61441694,2474.9,2474.6,5.82297597]
[1728788395400,3.61441694,2474.9,2474.7,0.12656364]
[1728788395611,2.12612571,2474.9,2474.8,0.12656364]
[1728788395903,3.61438581,2474.9,2474.8,0.12656364]
[1728788396200,3.61438581,2474.9,2474.8,0.5080814]
[1728788396399,3.61438581,2474.9,2474.8,0.12656364]
[1728788396610,3.61438581,2474.9,2474.8,0.5080814]
[1728788396776,3.61438581,2474.9,2474.8,0.12656364]
[1728788396975,3.61438581,2474.9,2474.8,0.5080814]
[1728788397297,1.4882601,2474.9,2474.8,0.5080814]
[1728788399108,1.4882601,2474.9,2474.8,0.5080799]
[1728788404884,2.12590826,2475.0,2474.8,0.5080799]
[1728788405087,1.4882601,2475.1,2474.9,0.94975139]
[1728788405303,1.4882601,2475.0,2474.9,0.8232]
[1728788405509,1.4882601,2475.0,2474.9,1.34773178]
[1728788405791,1.4882601,2475.0,2474.9,1.47428273]
[1728788407922,1.4882601,2475.0,2474.9,0.52453178]
[1728788408087,1.4882601,2475.0,2474.8,0.38151776]
[1728788408285,3.61416836,2475.2,2474.8,0.38151776]
[1728788408286,1.4882601,2474.9,2474.8,0.38151776]
[1728788408473,1.4882601,2474.9,2474.8,0.50807204]
[1728788412291,1.4882601,2474.9,2474.8,0.50807186]
[1728788412725,1.4882601,2474.9,2474.8,0.50807188]
[1728788413039,1.4882601,2474.9,2474.8,1.44373607]
[1728788413247,1.4882601,2474.9,2474.8,1.31718195]
[1728788413397,1.4882601,2474.9,2474.8,1.44373574]
[1728788415337,1.4882601,2474.9,2474.8,1.31718195]
[1728788415902,1.4882601,2474.9,2474.8,1.44373578]
[1728788416202,1.4882601,2474.9,2474.8,1.31718195]
[1728788416398,1.4882601,2474.9,2474.8,1.44373261]
[1728788416605,1.4882601,2474.9,2474.8,1.31718195]
[1728788419322,1.4882601,2475.0,2474.8,1.31718195]
[1728788421757,1.4882601,2474.9,2474.8,1.31718195]
[1728788421914,1.4882601,2474.9,2474.8,1.44373286]
[1728788422320,1.4882601,2474.9,2474.8,1.44373459]
[1728788422762,1.4882601,2474.9,2474.8,1.31718195]
[1728788423066,1.4882601,2474.9,2474.8,1.44373383]
[1728788423265,1.4882601,2474.9,2474.8,1.31718195]
[1728788423438,1.4882601,2474.9,2474.8,1.44373209]
[1728788430333,1.4882601,2474.9,2474.8,0.5080679]
[1728788430732,1.4882601,2474.9,2474.8,0.38151776]
[1728788430970,1.4882601,2474.9,2474.7,0.7668]
[1728788431176,1.4882601,2474.9,2474.8,0.50798612]
[1728788431334,1.4882601,2474.9,2474.8,0.38143483]
[1728788431532,1.4882601,2474.9,2474.7,4.80767]
[1728788431732,1.4882601,2474.9,2474.8,0.38143483]
[1728788431982,1.4882601,2474.9,2474.7,5.692532]
[1728788432269,1.4882601,2474.9,2474.8,0.38143483]
[1728788432676,1.4882601,2474.9,2474.7,5.692532]
[1728788432882,1.4882601,2475.0,2474.8,0.38143483]
[1728788433234,1.4882601,2475.0,2474.7,5.692532]
[1728788433476,1.4882601,2475.0,2474.9,0.38131563]
[1728788433680,1.4882601,2475.0,2474.8,0.38143597]
[1728788433849,1.4882601,2475.0,2474.9,0.38131563]
[1728788434273,1.4882601,2475.0,2474.7,4.80767]
[1728788434487,1.4882601,2475.0,2474.9,0.38131563]
[1728788434655,1.4882601,2475.0,2474.8,0.38143597]
[1728788434983,1.4882601,2475.0,2474.9,0.38131563]
[1728788435334,1.4882601,2475.0,2474.7,4.80767]
[1728788435572,1.4882601,2475.0,2474.8,1.3928482]
[1728788435876,1.4882601,2475.0,2474.8,1.26629797]
[1728788436079,2.89884531,2475.3,2474.8,5.30701797]
[1728788436262,2.2638601,2475.3,2474.9,1.19298985]
[1728788436471,1.4882601,2475.2,2475.0,0.77652993]
[1728788436638,2.2638601,2475.3,2475.0,1.03118508]
[1728788436839,2.2638601,2475.3,2475.0,0.3811953]
[1728788437046,1.4882601,2475.2,2475.0,0.3811953]
[1728788440885,1.4882601,2475.1,2475.0,0.3811953]
[1728788447208,1.4882601,2475.1,2474.8,4.0406]
[1728788447517,1.4882601,2475.1,2475.0,0.38114761]
[1728788447715,1.4882601,2475.1,2474.9,0.38126794]
[1728788447893,1.4882601,2475.1,2475.0,0.38114761]
[1728788451236,1.4882601,2475.1,2475.0,0.5076872]
[1728788451440,1.4882601,2475.1,2475.0,0.38114761]
[1728788458240,6.16317816,2475.5,2475.0,0.38114761]
[1728788458412,1.4882601,2475.2,2475.0,0.38114761]
[1728788458618,1.4882601,2475.2,2475.0,5.34574637]
[1728788458916,1.4882601,2475.2,2475.0,1.30536637]
[1728788459258,1.4882601,2475.1,2475.0,1.30536637]
[1728788459418,1.4882601,2475.1,2475.0,1.43190311]
[1728788460937,1.4882601,2475.1,2475.0,1.30536637]
[1728788461143,1.4882601,2475.1,2475.0,1.43190359]
[1728788461367,1.4882601,2475.1,2475.0,0.50768483]
[1728788461719,1.4882601,2475.1,2475.0,0.50768516]
[1728788464210,1.4882601,2475.1,2475.0,0.38114761]
[1728788465931,1.4882601,2475.1,2475.0,0.50768518]
[1728788468232,1.4882601,2475.1,2475.0,0.38114761]
[1728788468433,1.4882601,2475.1,2475.0,0.50768514]
[1728788471366,0.8252,2475.3,2475.0,4.54808514]
[1728788471564,1.4882601,2475.2,2475.0,5.35841612]
[1728788471731,1.4882601,2475.1,2475.0,5.35841612]
[1728788471919,1.4882601,2475.1,2475.0,5.48495283]
[1728788472263,1.4882601,2475.1,2475.0,5.78737399]
[1728788472760,0.8252,2475.3,2475.0,5.78737399]
[1728788472965,0.8299,2475.5,2475.1,0.78327159]
[1728788473145,1.4882601,2475.3,2475.1,1.4155374]
[1728788473352,1.4882601,2475.3,2475.2,0.37804161]
[1728788479927,1.4882601,2475.3,2475.0,4.0403]
[1728788480139,0.8299,2475.5,2475.2,0.37804161]
[1728788480329,1.4882601,2475.3,2475.1,0.37816192]
[1728788480529,1.4882601,2475.2,2475.0,4.0403]
[1728788480729,1.4882601,2475.2,2475.1,0.12653183]
[1728788483567,1.4882601,2475.2,2475.1,0.50467914]
[1728788483764,1.4882601,2475.2,2475.1,0.12653183]
[1728788483943,1.4882601,2475.2,2475.1,0.50467914]
[1728788484139,1.4882601,2475.2,2475.1,0.12653183]
[1728788484342,1.4882601,2475.2,2475.1,0.50467914]
[1728788484528,1.4882601,2475.2,2475.1,0.12653183]
[1728788484728,0.8299,2475.3,2475.1,0.50467914]
[1728788484928,1.4882601,2475.2,2474.9,4.79935]
[1728788485171,1.4882601,2475.2,2475.0,1.39793922]
[1728788485327,1.4882601,2475.2,2475.1,0.12653471]
[1728788487029,1.4882601,2475.2,2475.1,0.12653493]
[1728788490787,1.4882601,2475.2,2475.1,0.12653407]
[1728788490949,1.4882601,2475.2,2475.1,0.25307099]
[1728788495138,3.7414202,2475.2,2475.1,0.25307099]
[1728788495368,3.7414202,2475.2,2475.1,0.12653407]
[1728788495981,7.7814902,2475.2,2475.1,0.12653407]
[1728788496913,7.7814902,2475.2,2474.6,4.45005863]
[1728788496914,0.7649,2475.1,2474.7,0.30275713]
[1728788497221,0.7649,2475.1,2474.6,4.45005863]
[1728788497222,1.4882601,2474.8,2474.6,4.45005863]
[1728788497509,0.7649,2475.1,2474.7,1.03455254]
[1728788497718,0.7649,2475.1,2474.6,4.45005863]
[1728788497912,0.7649,2475.1,2474.7,0.42928937]
[1728788498090,0.7649,2475.1,2474.6,4.45005863]
[1728788498293,1.4882601,2474.7,2474.6,4.45005863]
[1728788498493,1.4882601,2474.7,2474.6,5.58022375]
[1728788500718,1.4882601,2474.8,2474.6,5.58022375]
[1728788500878,1.4882601,2474.8,2474.7,1.06273212]
[1728788501280,1.4882601,2474.8,2474.7,0.76002413]
[1728788502099,1.4882601,2474.8,2474.7,0.63347238]
[1728788502983,1.4882601,2474.8,2474.7,1.062644]
[1728788503231,1.4882601,2474.8,2474.7,0.76002382]
[1728788503491,1.4882601,2474.8,2474.7,0.63347238]
[1728788507851,2.2720601,2474.8,2474.4,7.88942222]
[1728788507998,1.4882601,2474.6,2474.5,1.12980167]
[1728788508204,1.4882601,2474.6,2474.5,5.17102167]
[1728788508542,1.4882601,2474.6,2474.5,5.17100583]
[1728788508717,1.4882601,2474.6,2474.5,6.59261838]
[1728788508911,1.4882601,2474.7,2474.5,6.59261838]
[1728788509238,1.4882601,2474.7,2474.5,5.46283255]
[1728788510646,1.4882601,2474.7,2474.5,1.42161255]
[1728788510827,1.4882601,2474.6,2474.4,4.04126]
[1728788511148,1.4882601,2474.6,2474.5,0.42913235]
[1728788511304,1.4882601,2474.6,2474.5,0.12655973]
[1728788511509,1.4882601,2474.6,2474.4,4.04126]
[1728788511715,1.4882601,2474.6,2474.4,5.04993396]
[1728788512236,1.4882601,2474.6,2474.4,9.09121396]
[1728788512637,1.4882601,2474.6,2474.4,5.04993396]
[1728788512948,1.4882601,2474.6,2474.4,9.09120396]
[1728788513323,1.4882601,2474.6,2474.4,5.04993396]
[1728788513534,1.4882601,2474.6,2474.5,0.37892332]
[1728788518720,0.7838,2474.8,2474.5,0.37892332]
[1728788518981,1.4882601,2474.6,2474.5,0.37892332]
[1728788521521,1.4882601,2474.6,2474.5,4.42014332]
[1728788521934,1.4882601,2474.6,2474.5,0.37892332]
[1728788524680,1.4882601,2474.6,2474.5,4.42014332]
[1728788524837,1.4882601,2474.6,2474.5,0.37892332]
[1728788526580,0.7838,2474.8,2474.5,1.26458339]
[1728788526753,1.4882601,2474.7,2474.5,1.26458339]
[1728788526951,0.7838,2474.8,2474.5,1.26458339]
[1728788527282,1.4882601,2474.7,2474.5,1.26458339]
[1728788529262,0.7838,2474.8,2474.6,0.7905]
[1728788529263,1.4882601,2474.8,2474.6,0.7905]
[1728788529478,1.4882601,2474.7,2474.6,0.7905]
[1728788529645,1.4882601,2474.7,2474.6,1.80424434]
[1728788530046,1.4882601,2474.8,2474.6,1.80424434]
[1728788530255,1.4882601,2474.7,2474.6,1.80424434]
[1728788530799,1.4882601,2474.7,2474.4,8.87303]
[1728788531003,1.4882601,2474.7,2474.5,4.04121]
[1728788538003,0.7826,2475.0,2474.6,4.041]
[1728788538166,1.4882601,2474.9,2474.6,4.041]
[1728788539388,2.2708601,2475.0,2474.6,4.041]
[1728788539564,2.2708601,2475.0,2474.6,4.92828]
[1728788539785,1.4882601,2474.9,2474.6,4.92828]
[1728788541703,1.4882601,2474.9,2474.6,5.70628]
[1728788543583,1.4882601,2474.9,2474.7,0.37876242]
[1728788544879,1.48219851,2474.9,2474.7,0.37876242]
[1728788583265,1.4882601,2474.8,2474.7,0.37876242]
[1728788583605,1.4882601,2474.8,2474.7,0.80826297]
[1728788583805,1.4882601,2474.9,2474.7,0.80826297]
[1728788584010,1.4882601,2474.9,2474.7,0.37876242]
[1728788584372,1.4882601,2474.8,2474.7,0.37876242]
[1728788584689,1.4882601,2474.8,2474.7,0.80826069]
[1728788587933,1.4882601,2474.8,2474.7,0.80826062]
[1728788588232,1.4882601,2474.8,2474.7,1.50971885]
[1728788588436,1.4882601,2474.8,2474.7,1.50976697]
[1728788589819,1.4882601,2474.9,2474.7,1.50976697]
[1728788590140,1.4882601,2474.9,2474.8,0.12655162]
[1728788590300,1.4882601,2474.9,2474.8,0.50315521]
[1728788595168,1.4882601,2474.9,2474.8,0.37660359]
[1728788595318,1.4882601,2474.9,2474.8,0.12655176]
[1728788595519,1.4882601,2474.9,2474.8,0.50315535]
[1728788596670,2.94162447,2475.2,2474.8,5.48007489]
[1728788596819,1.4882601,2475.1,2474.9,0.94745176]
[1728788597022,2.12562447,2475.3,2475.0,0.12655176]
[1728788597331,2.12562447,2475.5,2475.0,4.64268618]
[1728788597643,10.25162447,2475.6,2475.1,0.12653533]
[1728788597833,1.4882601,2475.3,2475.0,4.64268618]
[1728788598053,1.4882601,2475.3,2475.2,0.37612007]
[1728788598572,1.4882601,2475.3,2475.0,4.26632549]
[1728788598777,1.4882601,2475.3,2475.2,0.37612007]
[1728788598979,1.4882601,2475.3,2475.1,0.88496293]
[1728788599281,1.4882601,2475.3,2475.2,0.37612007]
[1728788600869,8.126,2475.6,2475.2,0.37612007]
[1728788601078,1.4882601,2475.3,2475.2,0.37612007]
[1728788601275,1.4882601,2475.3,2475.2,0.89123688]
[1728788607350,1.4882601,2475.3,2475.2,0.37612007]
[1728788607536,1.4882601,2475.3,2475.0,4.26632549]
[1728788607737,1.4882601,2475.2,2475.0,4.26632549]
[1728788608183,2.2827601,2475.1,2474.7,0.68590681]
[1728788608385,1.4882601,2474.8,2474.6,5.48694879]
[1728788608587,1.4882601,2474.8,2474.7,0.12654701]
[1728788609422,1.4882601,2474.8,2474.6,5.21266609]
[1728788609701,0.7945,2475.1,2474.6,5.21266609]
[1728788609702,1.4882601,2475.0,2474.7,4.73699957]
[1728788609853,1.4882601,2475.0,2474.7,4.61044764]
[1728788610058,1.4882601,2474.9,2474.7,4.61044764]
[1728788611596,1.4882601,2475.0,2474.7,4.61044764]
[1728788611798,1.4882601,2475.0,2474.8,0.98231137]
[1728788612165,1.4882601,2474.9,2474.8,0.98231137]
[1728788613554,1.4882601,2475.0,2474.8,0.98231137]
[1728788613899,1.4882601,2474.9,2474.8,0.98231137]
[1728788614602,1.4882601,2474.9,2474.8,1.1088543]
[1728788614898,1.4882601,2474.9,2474.8,0.98231137]
[1728788615195,1.4882601,2474.9,2474.8,1.10885426]
[1728788615894,1.4882601,2474.9,2474.8,5.14958426]
[1728788616758,1.4882601,2475.0,2474.8,5.14958426]
[1728788616955,1.4882601,2475.0,2474.8,5.02304137]
[1728788617159,1.4882601,2475.0,2474.9,0.9633489]
[1728788618096,1.4882601,2475.0,2474.9,5.0039089]
[1728788618503,1.4882601,2475.0,2474.9,5.38033634]
[1728788620504,1.4882601,2475.1,2474.9,5.38033634]
[1728788620722,0.7945,2475.3,2474.9,5.38033634]
[1728788620723,1.4882601,2475.2,2475.0,4.0404]
[1728788621095,1.4882601,2475.2,2475.1,0.37618456]
[1728788622214,0.42281618,2475.6,2475.1,5.43447391]
[1728788622215,0.7945,2475.5,2475.1,5.43447391]
[1728788622393,1.4882601,2475.4,2475.1,5.43447391]
[1728788622728,1.4882601,2475.4,2475.2,4.04007]
[1728788623083,1.4882601,2475.4,2475.3,0.37594396]
[1728788623830,1.4882601,2475.4,2475.2,4.04007]
[1728788623984,1.4882601,2475.3,2475.2,4.04007]
[1728788624185,1.4882601,2475.3,2475.2,4.94990593]
[1728788624437,1.4882601,2475.4,2475.3,4.03991]
[1728788626182,1.4882601,2475.4,2475.2,4.94986593]
[1728788626381,1.4882601,2475.3,2475.2,4.94986593]
[1728788626584,1.4882601,2475.4,2475.2,4.94986593]
[1728788626816,1.4882601,2475.4,2475.3,0.89900959]
[1728788631222,1.4882601,2475.4,2475.1,4.04023]
[1728788631434,1.4882601,2475.3,2475.1,8.08037]
[1728788632114,1.4882601,2475.3,2475.1,8.08027]
[1728788632487,1.4882601,2475.3,2475.1,4.04013]
[1728788632701,1.4882601,2475.3,2475.1,8.08026]
[1728788632904,1.4882601,2475.3,2475.2,0.808026]
[1728788633504,1.4882601,2475.3,2475.2,1.18406906]
[1728788639337,1.4882601,2475.3,2475.2,0.37604306]
[1728788643282,1.4882601,2475.3,2475.2,0.12652914]
[1728788643482,1.4882601,2475.3,2475.2,0.5025711]
[1728788643642,1.4882601,2475.3,2475.2,0.12652914]
[1728788643832,1.4882601,2475.3,2475.2,0.5025711]
[1728788644041,2.2738601,2475.3,2475.2,0.37604196]
[1728788644344,2.2738601,2475.3,2474.9,4.04048]
[1728788644547,0.7856,2475.3,2475.2,0.37602634]
[1728788645047,2.2738601,2475.3,2474.9,1.53623242]
[1728788645289,1.4882601,2475.0,2474.8,0.84813222]
[1728788645437,1.4882601,2475.0,2474.9,1.87943569]
[1728788645939,2.2738601,2475.0,2474.9,0.50292721]
[1728788646277,2.2738601,2475.0,2474.9,0.37638729]
[1728788646576,2.2738601,2475.0,2474.9,0.50293962]
[1728788646738,2.2738601,2475.0,2474.7,7.3]
[1728788646941,2.2738601,2475.0,2474.9,0.37638729]
[1728788646942,0.7856,2475.0,2474.9,0.37638729]
[1728788647178,2.2738601,2475.0,2474.8,0.37650763]
[1728788647481,0.7856,2475.0,2474.9,0.37638729]
[1728788647864,2.2738601,2475.0,2474.9,0.1265499]
[1728788648086,2.2738601,2475.0,2474.9,0.50293719]
[1728788648385,2.2738601,2475.0,2474.9,0.12654819]
[1728788648549,2.2738601,2475.0,2474.9,0.50293548]
[1728788648754,2.2738601,2475.0,2474.9,0.12654819]
[1728788648963,2.2738601,2475.0,2474.9,0.50293548]
[1728788649173,2.2738601,2475.0,2474.9,0.12654819]
[1728788649340,2.2738601,2475.0,2474.9,0.50293548]
[1728788649542,2.2738601,2475.0,2474.9,0.12654819]
[1728788649780,2.2738601,2475.0,2474.9,0.50293548]
[1728788649984,2.2738601,2475.0,2474.9,0.42937479]
[1728788650158,2.2738601,2475.0,2474.9,0.80576208]
[1728788650945,1.4882601,2475.1,2474.9,0.80576208]
[1728788651145,1.4882601,2475.1,2474.9,0.37638729]
[1728788651346,1.4882601,2475.1,2475.0,0.30278046]
[1728788651567,1.4882601,2475.1,2475.0,0.42932329]